Cogmind - Beta 9.6 @@@ ROGUE MODE // 2020.09.09 @ 19:50:47 Player: TheGreatBorealis Result: Destroyed by S-10 Pest with Light Assault Rifle Performance ------------- Evolutions (1) 500 Regions Visited (3) 600 Robots Destroyed (13) 65 Value Destroyed (260) 260 Prototype IDs (0) 0 Alien Tech Used (0) 0 Bonus (0) 0 TOTAL SCORE: 1425 Bonus ------- None Cogmind --------- Core Integrity 0/400 Matter 264/300 Energy 99/100 System Corruption 0% Temperature Cool (0) Movement Core (50) Location -9/Materials Parts ------- > --- POWER (1) -------- (None) > --- PROPULSION (4) --- (None) > --- UTILITY (2) ------ (None) > --- WEAPON (2) ------- (None) > --- INVENTORY (4) ---- Light Ion Engine Small Storage Unit Hacking Suite Peak State ------------ > --- POWER ------------ Ion Engine > --- PROPULSION ------- Aluminum Leg Aluminum Leg Aluminum Leg > --- UTILITY ---------- Small Storage Unit Targeting Computer > --- WEAPON ----------- EM Pulse Gun Light Cannon > --- INVENTORY -------- Ion Engine Ion Engine Light Ion Engine Small Storage Unit Hacking Suite [Rating: 8] Favorites ----------- Power Ion Engine Engine Ion Engine Propulsion Aluminum Leg Leg Aluminum Leg Hover Unit Hover Unit Utility Small Storage Unit Storage Small Storage Unit Processor Targeting Computer Weapon EM Pulse Gun Energy Gun EM Pulse Gun Ballistic Gun Light Assault Rifle Ballistic Cannon Light Cannon Build | -11 -10 -10 -9 ------- Run | Scr Mat Min Mat Slots Evolved 2 | . . . 2 Power . | . . . . Propulsion 2 | . . . 2 Utility . | . . . . Weapon . | . . . . Parts Attached 11 | 6 . 2 3 Power 1 | 1 . . . Engine 1 | 1 . . . Core . | . . . . Reactor . | . . . . Propulsion 4 | 2 . . 2 Treads . | . . . . Leg 3 | 2 . . 1 Wheel . | . . . . Hover 1 | . . . 1 Flight . | . . . . Utility 2 | 1 . 1 . Device . | . . . . Storage 1 | 1 . . . Processor 1 | . . 1 . Hackware . | . . . . Protection . | . . . . Artifact . | . . . . Weapon 4 | 2 . 1 1 Energy Gun 2 | 2 . . . Energy Cannon . | . . . . Ballistic Gun 1 | . . . 1 Ballistic Cannon 1 | . . 1 . Launcher . | . . . . Special Weapon . | . . . . Impact Weapon . | . . . . Slashing Weapon . | . . . . Piercing Weapon . | . . . . Special Melee Weapon . | . . . . Unidentified Prototypes . | . . . . Parts Lost 3 | . . 1 2 Power . | . . . . Propulsion 1 | . . . 1 Utility . | . . . . Weapon 2 | . . 1 1 Highest Loss Streak 1 | . . 1 1 Average Slot Usage (%) 75 | . 85 87 58 Engine 11 | . 14 14 7 Leg 25 | . 28 28 22 Storage 11 | . 14 14 7 Processor 4 | . . 4 7 Energy Gun 16 | . 28 20 3 Ballistic Cannon 4 | . . 5 7 Naked Turns 53 | . . . 53 Heaviest Build 14 | 13 13 14 14 Greatest Support 30 | 20 20 20 30 Greatest Overweight (x) . | . . . . Average Overweight (x) . | . . . . Largest Inventory Capacity 6 | 6 6 6 6 Average Capacity 5 | 5 6 6 5 Most Carried 6 | 4 6 6 5 Average Carried 4 | 1 4 6 4 Final Capacity 6 | 6 6 6 4 Final Carried 6 | 2 6 6 3 Class Distribution -------------------- 100% | Mutant Dominant Class ---------------- Mutant | -10/Materials Mutant | -10/Mines Mutant | -9/Materials Resources | -11 -10 -10 -9 ----------- Run | Scr Mat Min Mat Matter Collected 328 | 171 89 20 48 Remotely . | . . . . Salvage Created 324 | . 165 102 57 Parts 22 | . 12 4 6 Haulers Intercepted . | . . . . Recyclers Shooed . | . . . . Parts Field Recycled . | . . . . Retrieved Matter . | . . . . Parts Self-Destructed . | . . . . Prevented . | . . . . Kills | -11 -10 -10 -9 ------- Run | Scr Mat Min Mat Combat Hostiles Destroyed 11 | . 5 2 4 Guns 6 | . 5 1 . Cannons 4 | . . . 4 AOE 1 | . . 1 . Classes Destroyed 5 | . 3 1 1 Operator 1 | . 1 . . Watcher 1 | . . . 1 Swarmer 7 | . 3 . 4 Grunt 2 | . 2 . . Sentry 2 | . . 2 . Best Kill Streak 4 | . 3 2 4 Combat Bots Only 4 | . 3 2 4 Max Kills in Single Turn 1 | . 1 1 1 Gunslinging . | . . . . Exploded 1 | . . 1 . Melee . | . . . . Uniques/NPCs Destroyed . | . . . . Combat | -11 -10 -10 -9 -------- Run | Scr Mat Min Mat Damage Taken 821 | . 105 141 575 Core 479 | . 43 31 405 Absorbed by Shields . | . . . . Core Remaining (%) 85 | 100 . 70 . Volleys Fired 30 | . 8 4 18 Largest 2 | . 2 2 2 Hottest 80 | . 80 80 75 Shots Fired 44 | . 16 6 22 Gun 26 | . 16 6 4 Cannon 18 | . . . 18 Launcher . | . . . . Special . | . . . . Kinetic 19 | . . . 19 Thermal . | . . . . Explosive . | . . . . Electromagnetic 25 | . 16 6 3 Robot Hit Streak 7 | . 7 5 5 Robot Miss Streak 3 | . 1 1 3 Penetration Max . | . . . . Secondary Targets . | . . . . Shots Hit Robots 29 | . 11 5 13 Core Hits 18 | . 8 4 6 Critical Hits . | . . . . Critical Kills . | . . . . Critical Parts Destroyed . | . . . . Melee Attacks . | . . . . Impact . | . . . . Slashing . | . . . . Piercing . | . . . . Sneak Attacks . | . . . . Combat Hostiles . | . . . . Follow-up Attacks . | . . . . Damage Inflicted 559 | . 139 145 275 Guns 265 | . 139 56 70 Cannons 187 | . . . 187 Explosions 89 | . . 89 . Melee . | . . . . Ramming 18 | . . . 18 Kinetic 187 | . . . 187 Thermal 89 | . . 89 . Explosive . | . . . . Electromagnetic 265 | . 139 56 70 Impact . | . . . . Slashing . | . . . . Piercing . | . . . . Highest Corruption . | . . . . Average Corruption . | . . . . Corruption Purged . | . . . . Overload Shots . | . . . . Overflow Damage 14 | . . 14 . Projectiles . | . . . . Explosions 14 | . . 14 . Melee . | . . . . Knockbacks 3 | . . . 3 Impact . | . . . . Kinetic 2 | . . . 2 Secondary 1 | . . . 1 Self-Inflicted Damage 47 | . . 38 9 Shots 1 | . . 1 . Rammed 3 | . . . 3 Targets Rammed 3 | . . . 3 Kicked . | . . . . Crushed . | . . . . Highest Temperature 75 | . 66 75 12 Average Temperature 28 | . 29 45 6 Received Heat Transfer 153 | . 30 36 87 Siege Activations . | . . . . Robots Corrupted . | . . . . Combat Hostiles . | . . . . Parts Fried 1 | . . . 1 Impact Corruptions . | . . . . Robots Melted . | . . . . Combat Hostiles . | . . . . Parts Melted . | . . . . Heat Transferred 150 | . . 150 . Parts Sabotaged . | . . . . Parts Stolen . | . . . . Parts Stripped . | . . . . Power Chain Reactions 1 | . . 1 . Missiles Intercepted . | . . . . Alert | -11 -10 -10 -9 ------- Run | Scr Mat Min Mat Peak Influence 226 | . 177 114 226 Average Influence 98 | . 98 92 133 Maximum Alert Level 1 | . . . 1 Low Security (%) 90 | 100 100 100 73 Level 1 9 | . . . 26 Level 2 . | . . . . Level 3 . | . . . . Level 4 . | . . . . Level 5 . | . . . . High Security . | . . . . Max Security . | . . . . Squads Dispatched 3 | . . . 3 Investigation 1 | . . . 1 Extermination . | . . . . Reinforcement 2 | . . . 2 Assault . | . . . . Garrison . | . . . . Intercept . | . . . . Construction Impeded . | . . . . Haulers Reinforced . | . . . . Stealth | -11 -10 -10 -9 --------- Run | Scr Mat Min Mat Distress Signals 4 | . 1 . 3 Communications Jammed . | . . . . Distress Signals . | . . . . Times Spotted 34 | . 9 2 23 Peak Tracking Total 9 | . 3 2 9 Tactical Retreats 2 | . . . 2 Traps | -11 -10 -10 -9 ------- Run | Scr Mat Min Mat Traps Triggered 1 | . . . 1 Indirectly . | . . . . Trap Hack Attempts . | . . . . Triggered . | . . . . Disarmed . | . . . . Reprogrammed . | . . . . Reused . | . . . . Traps Extracted . | . . . . Installed . | . . . . Triggered . | . . . . Machines | -11 -10 -10 -9 ---------- Run | Scr Mat Min Mat Machines Disabled . | . . . . Max in Single Turn . | . . . . Machines Sabotaged . | . . . . Garrisons Compromised . | . . . . Overloaded Fab Kills . | . . . . Fab Network Shutdowns . | . . . . Hacking | -11 -10 -10 -9 --------- Run | Scr Mat Min Mat Machines Accessed 1 | . 1 . . Terminals 1 | . 1 . . Fabricators . | . . . . Repair Stations . | . . . . Recycling Units . | . . . . Scanalyzers . | . . . . Garrison Access . | . . . . Total Hacks 3 | . 3 . . Successful 1 | . 1 . . Failed 2 | . 2 . . Catastrophic . | . . . . Database Lockouts . | . . . . Manual . | . . . . Terminals 3 | . 3 . . Fabricators . | . . . . Repair Stations . | . . . . Recycling Units . | . . . . Scanalyzers . | . . . . Garrison Access . | . . . . Terminal Hacks 1 | . 1 . . Zone Layout 1 | . 1 . . Fabricator Hacks . | . . . . Repair Station Hacks . | . . . . Recycling Unit Hacks . | . . . . Scanalyzer . | . . . . Garrison Access Hacks . | . . . . Unauthorized Hacks . | . . . . Terminals . | . . . . Fabricators . | . . . . Repair Stations . | . . . . Recycling Units . | . . . . Scanalyzers . | . . . . Garrison Access . | . . . . Data Cores Recovered 1 | . 1 . . Used 1 | . 1 . . Hacking Detections 1 | . 1 . . Full Trace Events . | . . . . Feedback Events . | . . . . Feedback Blocked . | . . . . Robot Schematics Acquired . | . . . . Robots Built . | . . . . Matter . | . . . . Time . | . . . . Total Robot Build Rating . | . . . . Part Schematics Acquired . | . . . . Parts Built . | . . . . Matter . | . . . . Time . | . . . . Total Part Build Rating . | . . . . Parts Repaired . | . . . . Time . | . . . . Parts Recycled . | . . . . Recycled Matter . | . . . . Retrieved Matter . | . . . . Retrieved Components . | . . . . Parts Scanalyzed . | . . . . Part Schematics Acquired . | . . . . Parts Damaged . | . . . . Bothacking | -11 -10 -10 -9 ------------ Run | Scr Mat Min Mat Used RIF Installer . | . . . . Robots Hacked . | . . . . Non-combat . | . . . . Combat . | . . . . Robot Hacks Applied . | . . . . Relay Couplers Released . | . . . . Robots Rewired . | . . . . Allies Hacked . | . . . . Hacks Repelled . | . . . . Allies | -11 -10 -10 -9 -------- Run | Scr Mat Min Mat Total Allies . | . . . . Largest Group . | . . . . Highest-Rated Group . | . . . . Highest-Rated Ally . | . . . . Total Orders . | . . . . Ally Attacks . | . . . . Total Damage . | . . . . Kills . | . . . . Allies Corrupted . | . . . . Allies Melted . | . . . . Intel | -11 -10 -10 -9 ------- Run | Scr Mat Min Mat Robot Analysis Total . | . . . . Derelict Logs Recovered . | . . . . Drone Launches . | . . . . Drone Recoveries . | . . . . Exploration | -11 -10 -10 -9 ------------- Run | Scr Mat Min Mat Turns Passed 554 | 64 173 122 195 Spaces Moved 423 | 54 98 86 185 Core 119 | 20 . . 99 Treads . | . . . . Legs 290 | 34 98 86 72 Wheels . | . . . . Hover 14 | . . . 14 Flight . | . . . . Fastest Speed 50 | 50 120 120 50 Average Speed 98 | 94 120 120 78 Slowest Speed 120 | 120 120 120 120 Overloaded Moves . | . . . . Propulsion Burnouts . | . . . . Robots Hopped . | . . . . Cave-ins Triggered . | . . . . Exploration Rate (%) 17 | 4 17 31 17 Regions Visited 3 Branch Regions 1 Pre-discovered Areas . | . . . . Known Exits Taken . | . . . . Unknown Exits Taken 3 | 1 1 1 . Scrap Searched . | . . . . Spaces Dug . | . . . . Terrain Destroyed 4 | . . 4 . Melee . | . . . . Projectile . | . . . . AOE 4 | . . 4 . Actions | -11 -10 -10 -9 --------- Run | Scr Mat Min Mat Total 516 | 67 138 98 213 Wait 37 | . 27 7 3 Move 420 | 53 97 85 185 Hop . | . . . . Pick Up 13 | 8 5 . . Fast Attach 4 | . . 2 2 Attach 7 | 6 . . 1 Detach . | . . . . Swap . | . . . . Drop 2 | . 1 . 1 Fire 30 | . 8 4 18 Melee . | . . . . Ram 3 | . . . 3 Kick . | . . . . Crush . | . . . . Escape Stasis . | . . . . Rewire . | . . . . Trap . | . . . . Miscellaneous . | . . . . Route ------- -11/Scrapyard -10/Materials -10/Mines -9/Materials History --------- Turn | Location | Event 7 | -11/Scrapyard | Discovered new exit (range 15) 65 | -11/Scrapyard | Entered Materials 91 | -10/Materials | Discovered new exit (range 15) 238 | -10/Materials | Entered Mines 303 | -10/Mines | Build established: Mutant 356 | -10/Mines | Discovered new exit (range 4) 360 | -10/Mines | Entered Materials 360 | -9/Materials | Evolved 2 slots: Propulsion x2 492 | -9/Materials | Released all parts (8) 526 | -9/Materials | Core integrity fell below 50% 544 | -9/Materials | Core integrity fell below 20% 555 | -9/Materials | Destroyed by S-10 Pest with Light Assault Rifle Last Messages --------------- 00492_ Released Aluminum Leg. 00492_ Released Lgt. Cannon. 00492_ Released Targeting Computer. 00492_ Released Lgt. Assault Rifle. 00496_ W-16 Scout sends out distress signal. 00497_ Slammed into W-16 Scout. 00500_ Sensor Array fried. 00500_ W-16 Scout destroyed. 00501_ Acquired 27 matter. 00501_ Acquired Hover Unit. 00503_ Dropped Ion Engine. 00507_ K-01 Serf collects debris. 00511_ Hover Unit destroyed. 00515_ O-16 Technician: "IFF HANDSHAKE FAILED. SECURING TERMINAL." 00521_ ALERT: Hostiles spotted, dispatching reinforcements to Terminal M006. 00529_ Triggered Alarm Trap. 00529_ An alarm sounds. 00529_ ALERT: Alarm triggered, dispatching investigation squad. [Achievement: Achiever] Map ----- +----------------------------------------------------+ | ????? ?# #??# #????# | | ????# ?# #??# #????# "" | | #######+#### #### ###### "" | | ? [ ??+ # "" | | # ?# + | | # """?# ### #######+#+# "" | | # """ # #?# #?# # "" | | # """ # #?# #?# # "" | | # + #?# #?# """ # | | # """ # ### ### """ ######## | | # """ # ## ## """ ##?????? | | # """?# ## ## +#?????? | | # ?# ## T / """ ##?????? | | ? ??# ## ## """ "#??????? | | # ??# ######## """ T#??????? | | ###???# # #! "#??????? | | ??????# =# # #??????? | | ?###+## +% ## ######??????? | | # + =# ####???????????? | | # """ # # #??????????????? | | # """ # # #??????????????? | | # """ # ########??????????????? | | # """ # #???########??????????? | | # + *##### """ #??????????? | | # "" # ! + """ #??????????? | | # """#@!##### """ #??????????? | | # S"# #???# #??????????? | | # """# #???# #??????????? | | #! """# #???# #??????????? | | # # #???####/############?? | | ##?#### #???# =*[ | | ??????# #???# *== | | ??????# #???# !] | | ??????# #???####+############## | | ??????# #?????????????????????? | | ?????? ?????????????????????? | | ?????? ?????????????????????? | | ?????? ?????????????????????? | | ?????? ?????????????????????? | | ?????? ?????????????????????? | | ??????? ?????????????????????? | | ???????????????????????????????? | | ???????????????????????????????? | | ???????????????????????????????? | | ???????????????????????????????? | | ???????????????????????????????? | | ???????????????????????????????? | | ???????????????????????????????? | | ???????????????????????????????? | | ???????????????????????????????? | +----------------------------------------------------+ Best States ------------- Heat Dissipation 28 Energy Generation 10 Energy Capacity 250 Matter Stores 300 Matter Capacity 300 Sight Range 16 Terrain Scan Density 10 Evasion (%) 53 Targeting Accuracy 5 Item Schematics ----------------- None Robot Schematics ------------------ None Fabricated ------------ Nothing Alien Tech Used ----------------- None Achievements -------------- Achiever Challenges ------------ None Game ------ Seed PrecisionSpectralTerrabomb Manual? 0 Play Time 00:10:56 Cumulative 25.9 hours Start 2020.09.09 @ 19:41:10 End 2020.09.09 @ 19:50:47 Sessions 1 Manual Loads 0 Difficulty Rogue Special Mode None Game No. 59 Rogue 59 Adventurer 0 Explorer 0 Win Type - Total 0 Types 0/0/0/0/0/0/0 Lore% 20 Gallery% 32 Achievement% 25 Wizard Run 0 Options --------- ASCII 0 Keyboard 1 Movement Numpad Keybinds 0 Fullscreen 2 Font 18/Terminus Map View 76x50 Tactical HUD 1 Map Filters NONE Filters NONE Steam 1 RUN: 4ace9295-5da3-4d46-9b08-9459b5c135ea